bitfinex/quotes_BTCUSD_20240905
["timestamp","ask_amount","ask_price","bid_price","bid_amount"]
[1725561546857,0.001,56737.0,56736.0,0.2884]
[1725561547076,0.176244,56740.0,56736.0,0.2844]
[1725561547317,0.1,56741.0,56737.0,0.1625]
[1725561547535,0.176248,56738.0,56737.0,0.1625]
[1725561547970,0.176245,56739.0,56737.0,0.1625]
[1725561548839,0.176245,56739.0,56737.0,0.1645]
[1725561549049,0.176248,56738.0,56737.0,0.1625]
[1725561549494,0.176246,56739.0,56737.0,0.1625]
[1725561549937,0.176246,56739.0,56737.0,0.1635]
[1725561550860,0.176248,56738.0,56737.0,0.1645]
[1725561552012,0.176248,56738.0,56737.0,0.1625]
[1725561552230,0.176248,56738.0,56737.0,0.1645]
[1725561552418,0.176248,56738.0,56737.0,0.1665]
[1725561554983,0.528745,56738.0,56737.0,0.1665]
[1725561556864,0.528745,56738.0,56737.0,0.2926]
[1725561557810,0.528745,56738.0,56737.0,0.2886]
[1725561558033,0.528745,56738.0,56737.0,0.2896]
[1725561558280,0.176238,56742.0,56738.0,0.1498]
[1725561558503,0.176236,56742.0,56739.0,0.1261]
[1725561558727,0.176239,56741.0,56740.0,0.2759]
[1725561558963,0.528717,56741.0,56740.0,0.2759]
[1725561560356,0.004,56742.0,56741.0,0.1498]
[1725561560555,0.004,56742.0,56741.0,0.804617]
[1725561560779,0.1,56750.0,56740.0,0.00352462]
[1725561560780,0.000816,56746.0,56745.0,0.176226]
[1725561560997,0.000816,56746.0,56745.0,0.452126]
[1725561561213,0.000816,56746.0,56745.0,0.2759]
[1725561561481,0.000816,56746.0,56745.0,0.452126]
[1725561561703,0.000816,56746.0,56745.0,0.804579]
[1725561561917,0.000816,56746.0,56745.0,0.452126]
[1725561562142,0.000816,56746.0,56745.0,0.453126]
[1725561562370,0.000816,56746.0,56745.0,0.805579]
[1725561562631,0.000816,56746.0,56745.0,0.804579]
[1725561562856,0.000816,56746.0,56745.0,0.805579]
[1725561563985,0.000816,56746.0,56745.0,0.808579]
[1725561564720,0.000816,56746.0,56745.0,1.160032]
[1725561564941,0.000816,56746.0,56745.0,1.163032]
[1725561565191,0.000816,56746.0,56745.0,0.810579]
[1725561565875,0.000816,56746.0,56745.0,0.2819]
[1725561566398,0.881933,56746.0,56745.0,0.2819]
[1725561566605,0.529486,56746.0,56745.0,0.2819]
[1725561567307,0.529486,56746.0,56745.0,0.1528]
[1725561567525,0.531486,56746.0,56745.0,0.1528]
[1725561567806,0.531486,56746.0,56745.0,0.1498]
[1725561568013,0.533486,56746.0,56745.0,0.1498]
[1725561568670,0.531486,56746.0,56745.0,0.1498]
[1725561568928,0.534486,56746.0,56745.0,0.1498]
[1725561569408,0.886933,56746.0,56745.0,0.1498]
[1725561570315,0.534486,56746.0,56745.0,0.1498]
[1725561570554,0.886933,56746.0,56745.0,0.1498]
[1725561572145,0.886117,56746.0,56745.0,0.1498]
[1725561572388,1.15891767,56746.0,56745.0,0.1498]
[1725561572624,0.528774,56735.0,56734.0,0.001632]
[1725561573177,0.528774,56735.0,56734.0,0.285632]
[1725561573406,1.15409067,56735.0,56734.0,0.158932]
[1725561574309,1.15509067,56735.0,56734.0,0.162932]
[1725561575419,1.15609067,56735.0,56734.0,0.167932]
[1725561575640,1.17057616,56735.0,56734.0,0.167932]
[1725561575858,0.002,56735.0,56734.0,0.287932]
[1725561576084,0.002,56735.0,56734.0,0.282932]
[1725561576085,0.529774,56735.0,56734.0,0.282932]
[1725561576302,0.54820748,56735.0,56734.0,0.282932]
[1725561576792,0.19569148,56735.0,56734.0,0.282932]
[1725561577032,0.19469148,56735.0,56734.0,0.278932]
[1725561577273,0.19469148,56735.0,56734.0,0.282932]
[1725561577518,0.19469148,56735.0,56734.0,0.287932]
[1725561577731,0.54720748,56735.0,56734.0,0.287932]
[1725561577952,0.19469148,56735.0,56734.0,0.287932]
[1725561578871,0.54720748,56735.0,56734.0,0.287932]
[1725561579106,1.25223948,56735.0,56734.0,0.167932]
[1725561579354,1.52504015,56735.0,56734.0,0.010632]
[1725561579581,1.25223948,56735.0,56734.0,0.140132]
[1725561581433,0.89972348,56735.0,56734.0,0.140132]
[1725561583941,0.89972348,56735.0,56734.0,0.010632]
[1725561587331,1.64804015,56735.0,56734.0,0.010632]
[1725561587555,1.65804015,56735.0,56734.0,0.010632]
[1725561587779,1.73730056,56735.0,56734.0,0.010632]
[1725561588011,1.77572282,56735.0,56734.0,0.010632]
[1725561588234,2.01055615,56735.0,56734.0,0.005632]
[1725561588466,1.65804015,56735.0,56734.0,0.005632]
[1725561588696,1.67004015,56735.0,56734.0,0.005632]
[1725561588913,2.02255615,56735.0,56734.0,0.005632]
[1725561589125,2.02255615,56735.0,56734.0,0.001632]
[1725561589776,2.02955615,56735.0,56734.0,0.001632]
[1725561590231,1.67704015,56735.0,56734.0,0.001632]
[1725561590678,2.02955615,56735.0,56734.0,0.001632]
[1725561591195,1.67004015,56735.0,56734.0,0.001632]
[1725561591648,1.66004015,56735.0,56734.0,0.001632]
[1725561592544,1.67204015,56735.0,56734.0,0.001632]
[1725561594098,1.66942715,56735.0,56734.0,0.001632]
[1725561594967,1.64642715,56735.0,56734.0,0.276632]
[1725561595383,1.37362648,56735.0,56734.0,0.276632]
[1725561595607,1.02111048,56735.0,56734.0,0.276632]
[1725561595827,0.66859448,56735.0,56734.0,0.276632]
[1725561596050,0.14243348,56735.0,56734.0,0.276632]
[1725561596492,0.20669148,56735.0,56734.0,0.276632]
[1725561596710,0.31269148,56735.0,56734.0,0.276632]
[1725561597138,0.30069148,56735.0,56734.0,0.276632]
[1725561597584,0.30669148,56735.0,56734.0,0.277632]
[1725561599780,0.65920748,56735.0,56734.0,0.277632]
[1725561600041,0.93200815,56735.0,56734.0,0.277632]
[1725561603007,1.28452415,56735.0,56734.0,0.277632]
[1725561603457,1.63704015,56735.0,56734.0,0.277632]
[1725561604609,1.63704015,56735.0,56734.0,0.157232]
[1725561604818,1.63704015,56735.0,56734.0,0.002632]
[1725561605045,1.66004015,56735.0,56734.0,0.002632]
[1725561607277,1.01172348,56735.0,56734.0,0.293232]
[1725561607485,1.36423948,56735.0,56734.0,0.293232]
[1725561607750,1.01172348,56735.0,56734.0,0.293232]
[1725561609952,1.63704015,56735.0,56734.0,0.293232]
[1725561611542,1.63704015,56735.0,56734.0,0.165432]
[1725561611772,1.66004015,56735.0,56734.0,0.002632]
[1725561611992,2.05105575,56735.0,56734.0,0.002632]
[1725561612968,2.05105575,56735.0,56724.0,0.001632]
[1725561612969,1.234002,56726.0,56725.0,0.1483]
[1725561613199,0.528867,56725.0,56724.0,0.001632]
[1725561613419,0.881445,56725.0,56724.0,0.001632]
[1725561613634,1.357023,56725.0,56724.0,0.001632]
[1725561614047,1.709601,56725.0,56724.0,0.001632]
[1725561615183,1.711601,56725.0,56724.0,0.001632]
[1725561615448,1.725601,56725.0,56724.0,0.001632]
[1725561615673,1.727601,56725.0,56724.0,0.001632]
[1725561615890,1.37745657,56725.0,56724.0,0.001632]
[1725561616127,1.37745657,56725.0,56724.0,0.279632]
[1725561616128,1.00787857,56725.0,56724.0,0.279632]
[1725561616350,0.640867,56725.0,56724.0,0.279632]
[1725561616580,0.288289,56725.0,56724.0,0.279632]
[1725561616809,0.012,56725.0,56724.0,0.279632]
[1725561617039,0.188289,56725.0,56724.0,0.279632]
[1725561617985,0.012,56725.0,56724.0,0.279632]
[1725561618915,0.012,56725.0,56724.0,1.16461736]
[1725561619134,0.012,56725.0,56724.0,1.161092]
[1725561620263,0.006,56725.0,56724.0,1.513676]
[1725561620931,0.000816,56735.0,56734.0,0.806683]
[1725561621158,0.000816,56735.0,56734.0,1.159205]
[1725561621706,0.000816,56735.0,56734.0,1.511727]
[1725561621940,0.000816,56735.0,56734.0,1.78452767]
[1725561622384,0.001816,56735.0,56734.0,1.78452767]
[1725561622813,0.000816,56735.0,56734.0,1.511727]
[1725561623055,0.001816,56735.0,56734.0,1.512727]
[1725561624129,0.002816,56735.0,56734.0,1.514727]
[1725561625201,0.002816,56735.0,56734.0,1.512727]
[1725561625202,0.001816,56735.0,56734.0,1.512727]
[1725561625914,0.001816,56735.0,56734.0,1.162205]
[1725561625915,0.002816,56735.0,56734.0,1.162205]
[1725561626334,0.001816,56735.0,56734.0,1.161205]
[1725561626785,0.001816,56735.0,56734.0,1.78652767]
[1725561627035,0.001816,56735.0,56734.0,1.78452767]
[1725561627251,0.000816,56735.0,56734.0,1.78452767]
[1725561627475,0.001816,56735.0,56734.0,1.78652767]
[1725561627663,0.001816,56735.0,56734.0,1.513727]
[1725561627906,0.001816,56735.0,56734.0,1.517727]
[1725561628116,0.000816,56735.0,56734.0,1.511727]
[1725561628333,0.001816,56735.0,56734.0,1.519727]
[1725561628547,0.002816,56735.0,56734.0,1.519727]
[1725561630112,0.002816,56735.0,56734.0,0.814683]
[1725561630567,0.002816,56735.0,56734.0,1.167205]
[1725561631433,0.000816,56746.0,56735.0,0.1567]
[1725561631434,0.176233,56743.0,56735.0,0.1567]
[1725561631667,0.176235,56743.0,56741.0,0.1567]
[1725561632140,0.352455,56745.0,56741.0,0.1567]
[1725561633237,0.17623,56744.0,56741.0,0.332939]
[1725561633666,0.353264,56746.0,56742.0,0.1497]
[1725561633889,0.352454,56745.0,56742.0,0.1497]
[1725561634120,0.001,56743.0,56742.0,0.1497]
[1725561634307,0.002,56743.0,56742.0,0.1497]
[1725561634559,0.17623,56744.0,56742.0,0.1497]
[1725561635198,0.176227,56745.0,56742.0,0.1517]
[1725561635412,0.176227,56745.0,56742.0,0.1547]
[1725561635598,0.353265,56746.0,56742.0,0.1527]
[1725561635886,0.353265,56746.0,56742.0,0.1497]
[1725561635887,0.176227,56745.0,56742.0,0.1497]
[1725561636348,0.176227,56745.0,56742.0,0.1537]
[1725561636765,0.17623,56744.0,56742.0,0.1537]
[1725561637643,0.17623,56744.0,56742.0,0.1567]
[1725561638066,0.000816,56745.0,56742.0,0.1527]
[1725561638275,0.176231,56744.0,56742.0,0.1527]
[1725561638577,0.176233,56743.0,56742.0,0.1527]
[1725561638997,0.17623,56744.0,56742.0,0.1497]
[1725561639219,0.17623,56744.0,56742.0,0.1517]
[1725561639475,0.15623,56744.0,56742.0,0.1517]
[1725561639733,0.001816,56745.0,56742.0,0.1517]
[1725561639734,0.178044,56745.0,56742.0,0.1497]
[1725561639947,0.001816,56745.0,56742.0,0.1517]
[1725561640169,0.176232,56744.0,56742.0,0.1517]
[1725561640389,0.176233,56743.0,56742.0,0.1497]
[1725561640817,0.176233,56743.0,56742.0,0.1517]
[1725561642135,0.176233,56743.0,56742.0,0.1507]
[1725561642825,0.176233,56743.0,56742.0,0.1527]
[1725561643034,0.528699,56743.0,56742.0,0.1527]
[1725561643969,0.881165,56743.0,56742.0,0.1527]
[1725561644191,0.000816,56745.0,56742.0,0.1527]
[1725561644431,0.000816,56745.0,56743.0,0.1204]
[1725561644747,0.000816,56745.0,56744.0,0.44813]
[1725561645309,0.000816,56745.0,56744.0,0.2719]
[1725561645528,0.001816,56745.0,56744.0,0.44813]
[1725561645977,0.001816,56745.0,56744.0,0.2719]
[1725561646473,0.001816,56745.0,56744.0,0.2759]
[1725561646908,0.000816,56745.0,56744.0,0.2759]
[1725561647122,0.000816,56745.0,56744.0,0.2789]
[1725561647783,0.000816,56745.0,56744.0,0.80759]
[1725561648936,0.000816,56745.0,56744.0,1.16005]
[1725561649652,0.000816,56745.0,56744.0,1.69002096]
[1725561649885,0.000816,56752.0,56750.0,1.50627767]
[1725561649886,0.000816,56751.0,56750.0,1.50627767]
[1725561650118,0.000816,56751.0,56750.0,1.97348863]
[1725561650367,0.000816,56751.0,56750.0,1.96148863]
[1725561651341,0.000816,56751.0,56750.0,1.78597767]
[1725561651794,0.001816,56751.0,56750.0,1.78997767]
[1725561652688,0.002816,56751.0,56750.0,1.80197767]
[1725561652918,0.000816,56751.0,56750.0,1.78597767]
[1725561653379,0.001816,56751.0,56750.0,1.79997767]
[1725561653618,0.002816,56751.0,56750.0,1.80897767]
[1725561655863,0.002816,56751.0,56750.0,0.478911]
[1725561656110,0.002816,56751.0,56750.0,1.183755]
[1725561656329,0.002816,56751.0,56750.0,0.478911]
[1725561656572,0.002816,56751.0,56750.0,0.3027]
[1725561658402,0.53144,56751.0,56750.0,0.1851]
[1725561658650,0.179024,56751.0,56750.0,0.1851]
[1725561659789,0.002816,56751.0,56750.0,0.1851]
[1725561661142,0.002816,56751.0,56750.0,0.361311]
[1725561661825,0.002816,56751.0,56750.0,0.1851]
[1725561662971,0.53144,56751.0,56750.0,0.023]
[1725561663911,0.53044,56751.0,56750.0,0.014]
[1725561664131,0.53144,56751.0,56750.0,0.02]
[1725561664821,0.53044,56751.0,56750.0,0.006]
[1725561665268,0.178024,56751.0,56750.0,0.019]
[1725561665507,0.001816,56751.0,56750.0,0.1771]
[1725561666173,0.178024,56751.0,56750.0,0.1771]
[1725561666646,0.53044,56751.0,56750.0,0.019]
[1725561666865,1.50807267,56751.0,56750.0,0.019]
[1725561667080,1.63107267,56751.0,56750.0,0.019]
[1725561667295,1.27865667,56751.0,56750.0,0.019]
[1725561667537,0.63044,56751.0,56750.0,0.019]
[1725561667750,0.278024,56751.0,56750.0,0.1748]
[1725561667977,0.278024,56751.0,56750.0,0.1558]
[1725561667978,0.62944,56751.0,56750.0,0.1558]
[1725561668203,0.63344,56751.0,56750.0,0.1558]
[1725561668667,0.62944,56751.0,56750.0,0.1558]
[1725561668902,0.982856,56751.0,56750.0,0.1558]
[1725561669344,0.986856,56751.0,56750.0,0.1558]
[1725561669783,0.982856,56751.0,56750.0,0.1558]
[1725561672520,0.63044,56751.0,56750.0,0.1558]
[1725561672990,0.982856,56751.0,56750.0,0.1558]
[1725561674145,0.982856,56751.0,56746.0,0.123132]
[1725561674146,0.528661,56747.0,56746.0,0.273932]
[1725561675462,0.528661,56747.0,56746.0,0.277932]
[1725561675677,0.881102,56747.0,56746.0,0.277932]
[1725561675927,1.15390267,56747.0,56746.0,0.005632]
[1725561676136,1.15390267,56747.0,56746.0,0.009632]
[1725561676137,1.50634367,56747.0,56746.0,0.009632]
[1725561676393,1.88178467,56747.0,56746.0,0.009632]
[1725561676628,2.00579969,56747.0,56746.0,0.005632]
[1725561676862,2.50289034,56747.0,56746.0,0.005632]
[1725561677084,2.44597069,56747.0,56746.0,0.008632]
[1725561677310,2.17273739,56747.0,56746.0,0.004632]
[1725561677531,2.17273739,56747.0,56746.0,0.001632]
[1725561677532,2.17473739,56747.0,56746.0,0.001632]
[1725561677748,2.17073739,56747.0,56746.0,0.001632]
[1725561677963,2.20117087,56747.0,56746.0,0.001632]
[1725561678181,2.20517087,56747.0,56746.0,0.002632]
[1725561678602,2.20717087,56747.0,56746.0,0.002632]
[1725561679282,2.12796317,56747.0,56746.0,0.002632]
[1725561679796,2.12796317,56747.0,56724.0,0.001632]
[1725561679797,0.01,56733.0,56724.0,0.001632]
[1725561680013,0.62531667,56735.0,56724.0,0.001632]
[1725561680014,1.50682367,56725.0,56724.0,0.001632]
[1725561680237,1.60682367,56725.0,56724.0,0.001632]
[1725561680495,1.99240167,56725.0,56724.0,0.001632]
[1725561680721,2.39203034,56725.0,56724.0,0.001632]
[1725561680947,2.34497967,56725.0,56724.0,0.001632]
[1725561681383,2.34697967,56725.0,56724.0,0.001632]
[1725561681623,2.00648205,56725.0,56724.0,0.001632]
[1725561682132,2.01148205,56725.0,56724.0,0.001632]
[1725561682350,2.01248205,56725.0,56724.0,0.001632]
[1725561682573,2.01448205,56725.0,56724.0,0.001632]
[1725561683031,2.00848205,56725.0,56724.0,0.001632]
[1725561683282,2.02248205,56725.0,56724.0,0.001632]
[1725561683757,2.02248205,56725.0,56724.0,0.002632]
[1725561683985,2.01048205,56725.0,56724.0,0.001632]
[1725561684224,2.02448205,56725.0,56724.0,0.002632]
[1725561684698,2.02448205,56725.0,56724.0,0.001632]
[1725561684699,2.01048205,56725.0,56724.0,0.001632]
[1725561684915,2.02448205,56725.0,56724.0,0.002632]
[1725561685132,2.01048205,56725.0,56724.0,0.001632]
[1725561685580,2.02448205,56725.0,56724.0,0.002632]
[1725561686561,2.01048205,56725.0,56724.0,0.002632]
[1725561686746,2.01048205,56725.0,56724.0,0.001632]
[1725561687176,2.02448205,56725.0,56724.0,0.002632]
[1725561687395,1.99648205,56725.0,56724.0,0.001632]
[1725561687829,2.02448205,56725.0,56724.0,0.002632]
[1725561689186,2.05211262,56725.0,56724.0,0.002632]
[1725561689435,2.03445385,56725.0,56724.0,0.002632]
[1725561691675,2.03645385,56725.0,56724.0,0.002632]
[1725561692572,2.03445385,56725.0,56724.0,0.002632]
[1725561693286,2.05288733,56725.0,56724.0,0.002632]
[1725561693551,2.101938,56725.0,56724.0,0.002632]
[1725561694466,2.464516,56725.0,56724.0,0.002632]
[1725561694907,2.41746533,56725.0,56724.0,0.002632]
[1725561695374,2.41546533,56725.0,56724.0,0.002632]
[1725561696076,2.41746533,56725.0,56724.0,0.002632]
[1725561696332,2.40472655,56725.0,56724.0,0.002632]
[1725561696555,1.971212,56724.0,56723.0,0.00164]
[1725561696777,1.971212,56724.0,56716.0,0.154432]
[1725561696778,0.80373167,56718.0,56716.0,0.001632]
[1725561697004,1.99459467,56718.0,56716.0,0.001632]
[1725561697253,4.21238567,56718.0,56716.0,0.001632]
[1725561697481,0.80182467,56708.0,56707.0,0.001632]
[1725561697713,1.85987367,56708.0,56707.0,0.001632]
[1725561697943,1.95987367,56708.0,56707.0,0.001632]
[1725561698168,1.98287367,56708.0,56707.0,0.001632]
[1725561700017,1.98487367,56708.0,56707.0,0.001632]
[1725561700234,1.98487367,56708.0,56707.0,0.002632]
[1725561700451,1.98487367,56708.0,56707.0,0.001632]
[1725561700886,2.00069296,56708.0,56707.0,0.001632]
[1725561701309,1.9945343,56708.0,56707.0,0.001632]
[1725561701976,1.34605063,56708.0,56707.0,0.001632]
[1725561702197,1.33223134,56708.0,56707.0,0.275932]
[1725561708591,1.35066482,56708.0,56707.0,0.275932]
[1725561711110,1.35148182,56708.0,56707.0,0.275932]
[1725561712253,1.37448182,56708.0,56707.0,0.275932]
[1725561713162,1.72716482,56708.0,56707.0,0.275932]
[1725561713829,1.72716482,56708.0,56707.0,0.001632]
[1725561714053,1.76589879,56708.0,56707.0,0.001632]
[1725561717824,2.11858179,56708.0,56707.0,0.001632]
[1725561718063,0.188351,56705.0,56704.0,0.00164]
[1725561718308,0.188351,56705.0,56700.0,0.004039]
[1725561718309,0.186363,56701.0,56700.0,0.004039]
[1725561718531,2.18160631,56701.0,56700.0,0.004039]
[1725561718753,2.68497525,56701.0,56700.0,0.004039]
[1725561718991,2.41217458,56701.0,56700.0,0.004039]
[1725561719669,2.41517458,56701.0,56700.0,0.004039]
[1725561719883,2.41217458,56701.0,56700.0,0.004039]
[1725561720111,2.41517458,56701.0,56700.0,0.004039]
[1725561720385,2.41717458,56701.0,56700.0,0.004039]
[1725561720574,2.41417458,56701.0,56700.0,0.004039]
[1725561720819,2.68497525,56701.0,56700.0,0.004039]
[1725561721061,2.68497525,56701.0,56690.0,0.157]
[1725561721062,1.234761,56691.0,56690.0,0.157]
[1725561721297,1.98335067,56691.0,56690.0,0.157]
[1725561721551,1.98335067,56691.0,56687.0,0.1586]
[1725561721552,0.01,56690.0,56687.0,0.1586]
[1725561721779,0.01,56690.0,56667.0,0.00164]
[1725561721780,0.529258,56683.0,56682.0,0.1586]
[1725561722007,1.257936,56683.0,56682.0,0.1586]
[1725561722232,1.710775,56683.0,56682.0,0.1586]
[1725561722460,2.073614,56683.0,56682.0,0.1586]
[1725561722682,1.710775,56683.0,56682.0,0.1586]
[1725561723347,1.587888,56679.0,56678.0,0.128]
[1725561723608,1.96068867,56679.0,56678.0,0.128]
[1725561723817,0.88233,56668.0,56667.0,0.00164]
[1725561724293,0.88233,56668.0,56667.0,0.13024]
[1725561725370,0.352907,56673.0,56667.0,0.13024]
[1725561725596,0.11843348,56679.0,56668.0,0.1286]
[1725561725813,0.11843348,56679.0,56669.0,0.1286]
[1725561725814,0.352885,56676.0,56669.0,0.1286]
[1725561726024,0.176454,56672.0,56670.0,0.1286]
[1725561726250,0.27280067,56674.0,56672.0,0.1286]
[1725561726469,0.17645,56673.0,56672.0,0.1286]
[1725561726687,0.529351,56673.0,56672.0,0.1286]
[1725561726950,0.529351,56673.0,56672.0,0.2762]
[1725561727185,0.882252,56673.0,56672.0,0.2762]
[1725561727439,0.882252,56673.0,56667.0,0.00164]
[1725561727440,0.22539108,56674.0,56668.0,0.176465]
[1725561727664,0.176452,56673.0,56672.0,0.153]
[1725561728324,0.882254,56673.0,56672.0,0.2777]
[1725561729223,0.883254,56673.0,56672.0,0.2777]
[1725561729433,0.530353,56673.0,56672.0,0.2777]
[1725561729636,0.002,56673.0,56672.0,0.2777]
[1725561729872,0.002,56673.0,56672.0,0.454153]
[1725561730093,0.002,56673.0,56672.0,1.159967]
[1725561730315,0.002,56673.0,56672.0,0.80706]
[1725561731643,0.37130048,56679.0,56673.0,0.2777]
[1725561731644,0.176442,56676.0,56673.0,0.2777]
[1725561731860,0.176442,56676.0,56672.0,0.176453]
[1725561732099,0.176442,56676.0,56675.0,0.2777]
[1725561733476,0.529325,56676.0,56675.0,0.2777]
[1725561734613,0.176442,56676.0,56675.0,0.2777]
[1725561735021,0.352871,56678.0,56676.0,0.2758]
[1725561735247,0.17644,56677.0,56676.0,0.2758]
[1725561735473,0.176433,56679.0,56677.0,0.2758]
[1725561735694,0.36692321,56690.0,56680.0,0.176427]
[1725561735936,0.352821,56686.0,56683.0,0.2758]
[1725561736165,0.352821,56686.0,56682.0,0.2758]
[1725561736389,0.52925,56684.0,56683.0,0.2731]
[1725561736854,0.17641,56686.0,56683.0,0.176419]
[1725561737073,0.882053,56686.0,56685.0,0.2731]
[1725561737746,0.64630223,56686.0,56685.0,0.2731]
[1725561737957,0.82671223,56686.0,56685.0,0.2731]
[1725561738401,0.82271223,56686.0,56685.0,0.2731]
[1725561738823,1.17953523,56686.0,56685.0,0.2731]
[1725561739292,1.18353523,56686.0,56685.0,0.2731]
[1725561739496,1.20653523,56686.0,56685.0,0.1527]
[1725561739948,1.234936,56683.0,56682.0,0.2852]
[1725561741475,1.235936,56683.0,56682.0,0.2852]
[1725561741920,1.235936,56683.0,56682.0,0.1593]
[1725561744096,1.235936,56683.0,56679.0,0.1277]
[1725561744097,1.235003,56680.0,56679.0,0.1277]
[1725561744520,1.86066167,56680.0,56679.0,0.1277]
[1725561744730,1.86066167,56680.0,56674.0,0.2738]
[1725561744731,0.882207,56676.0,56674.0,0.2738]
[1725561745172,1.86077367,56676.0,56674.0,0.2738]
[1725561745385,1.50789067,56676.0,56674.0,0.2738]
[1725561746073,1.50889067,56676.0,56675.0,0.009634]
[1725561746512,1.50889067,56676.0,56675.0,0.001634]
[1725561746513,1.50789067,56676.0,56675.0,0.001634]
[1725561747474,1.60789067,56676.0,56675.0,0.001634]
[1725561747682,1.63189067,56676.0,56675.0,0.008634]
[1725561747903,1.40424708,56676.0,56675.0,0.009634]
[1725561748122,1.58068808,56676.0,56675.0,0.008634]
[1725561748763,1.58268808,56676.0,56675.0,0.001634]
[1725561748986,1.60081736,56676.0,56675.0,0.001634]
[1725561751927,1.95370036,56676.0,56675.0,0.001634]
[1725561752174,1.96370036,56676.0,56675.0,0.001634]
[1725561752699,1.96570036,56676.0,56675.0,0.001634]
[1725561752910,2.31858336,56676.0,56675.0,0.001634]
[1725561754721,1.96370036,56676.0,56675.0,0.001634]
[1725561755171,1.96570036,56676.0,56675.0,0.001634]
[1725561755385,1.96370036,56676.0,56675.0,0.001634]
[1725561755601,1.95370036,56676.0,56675.0,0.001634]
[1725561755809,1.95370036,56676.0,56675.0,0.283334]
[1725561756465,1.95370036,56676.0,56675.0,0.126534]
[1725561756683,1.23522,56670.0,56669.0,0.2873]
[1725561757130,1.35822,56670.0,56669.0,0.2873]
[1725561757345,1.33522,56670.0,56669.0,0.2873]
[1725561758010,1.33522,56670.0,56669.0,0.2913]
[1725561758225,1.33522,56670.0,56669.0,0.2943]
[1725561758663,1.34939679,56670.0,56669.0,0.2943]
[1725561759792,1.34939679,56670.0,56669.0,0.295934]
[1725561760018,0.9823,56670.0,56669.0,0.295934]
[1725561765917,0.62938,56670.0,56669.0,0.295934]
[1725561766405,0.1,56670.0,56669.0,0.295934]
[1725561766680,0.27646,56670.0,56669.0,0.295934]
[1725561768064,0.353704,56676.0,56673.0,0.1488]
[1725561768282,0.176444,56675.0,56674.0,0.2732]
[1725561768513,0.629333,56675.0,56674.0,0.2732]
[1725561770021,0.982222,56675.0,56674.0,0.2732]
[1725561770223,0.987222,56675.0,56674.0,0.2732]
[1725561775374,1.340111,56675.0,56674.0,0.2732]
[1725561775801,1.235199,56671.0,56670.0,0.2782]
[1725561776016,1.50799967,56671.0,56670.0,0.2782]
[1725561776505,1.86091367,56671.0,56670.0,0.2782]
[1725561776707,1.23522,56670.0,56669.0,0.001634]
[1725561776920,1.25822,56670.0,56669.0,0.001634]
[1725561778944,1.25822,56670.0,56669.0,0.004634]
[1725561779149,1.25822,56670.0,56669.0,0.008634]
[1725561783981,1.23522,56670.0,56669.0,0.126734]
[1725561786683,1.25822,56670.0,56669.0,0.008634]
[1725561789544,1.25822,56670.0,56669.0,0.279434]
[1725561790200,1.23522,56670.0,56669.0,0.279434]
[1725561794376,0.8823,56670.0,56669.0,0.279434]
[1725561794808,0.176457,56671.0,56669.0,0.008634]
[1725561795045,0.176452,56673.0,56672.0,0.2812]
[1725561795296,0.000817,56675.0,56669.0,0.008634]
[1725561795297,0.000817,56675.0,56673.0,0.2812]
[1725561795522,0.000817,56675.0,56674.0,0.882237]
[1725561795758,0.000817,56675.0,56674.0,0.810542]
[1725561796664,0.000817,56675.0,56674.0,0.457647]
[1725561796897,0.000817,56675.0,56674.0,0.810542]
[1725561798061,0.005817,56675.0,56674.0,0.810542]
[1725561798507,0.000817,56675.0,56674.0,0.810542]
[1725561798769,0.001817,56675.0,56674.0,0.821542]
[1725561800970,0.001817,56675.0,56674.0,0.468647]
[1725561801437,0.001817,56675.0,56674.0,0.821542]
[1725561803234,0.001817,56675.0,56674.0,0.468647]
[1725561806191,0.001817,56675.0,56674.0,0.2922]
[1725561806402,0.001817,56675.0,56674.0,0.468647]
[1725561808730,0.352858,56680.0,56675.0,0.2728]
[1725561809074,0.176432,56679.0,56676.0,0.449239]
[1725561809287,0.176432,56679.0,56677.0,0.1261]
[1725561809506,0.176435,56678.0,56677.0,0.1261]
[1725561809949,0.176432,56679.0,56677.0,0.1261]
[1725561810851,0.176432,56679.0,56678.0,0.147]
[1725561811939,0.529296,56679.0,56678.0,0.147]
[1725561812119,0.529296,56679.0,56678.0,0.148]
[1725561813268,0.176434,56679.0,56678.0,0.148]
[1725561813479,0.529298,56679.0,56678.0,0.148]
[1725561813864,0.176434,56679.0,56678.0,0.148]
[1725561816724,0.176434,56679.0,56678.0,0.149]
[1725561817797,0.17643,56680.0,56678.0,0.149]
[1725561818804,0.17643,56680.0,56678.0,0.148]
[1725561819577,0.17643,56680.0,56678.0,0.147]
[1725561819948,0.176432,56679.0,56678.0,0.147]
[1725561821281,0.176432,56679.0,56678.0,0.148]
[1725561821498,0.28288425,56680.0,56678.0,0.148]
[1725561821699,0.176432,56679.0,56678.0,0.148]
[1725561821887,0.176432,56679.0,56678.0,0.149]
[1725561822671,0.176432,56679.0,56678.0,0.148]
[1725561823081,0.176429,56680.0,56678.0,0.148]
[1725561823465,0.176429,56680.0,56678.0,0.149632]
[1725561823666,0.176429,56680.0,56678.0,0.150632]
[1725561824144,0.176429,56680.0,56678.0,0.148632]
[1725561824350,0.000816,56679.0,56678.0,0.148632]
[1725561825805,0.000816,56679.0,56678.0,0.149632]
[1725561826231,0.000816,56679.0,56678.0,0.150632]
[1725561826442,0.177248,56679.0,56678.0,0.150632]
[1725561826661,0.530112,56679.0,56678.0,0.150632]
[1725561827112,0.882976,56679.0,56678.0,0.150632]
[1725561828822,0.177248,56679.0,56678.0,0.150632]
[1725561829703,0.530112,56679.0,56678.0,0.150632]